[Event "Live Chess"]
[Site "Chess.com"]
[Date "2023.05.21"]
[Round "-"]
[White "Pablo_dmp"]
[Black "KeithArkell"]
[Result "0-1"]
[WhiteElo "1852"]
[BlackElo "2571"]
[TimeControl "300"]
[EndTime "20:44:54 PDT"]
[Termination "KeithArkell won on time"]

1. e4 {[%clk 0:04:57.8]} 1... d5 {[%clk 0:04:55.6]} 2. Nc3 {[%clk 0:04:50.6]}
2... dxe4 {[%clk 0:04:54]} 3. Nxe4 {[%clk 0:04:50.5]} 3... Nd7 {[%clk
0:04:52.4]} 4. Nf3 {[%clk 0:04:47.9]} 4... Ngf6 {[%clk 0:04:50.7]} 5. Nxf6+
{[%clk 0:04:43.2]} 5... Nxf6 {[%clk 0:04:50.3]} 6. Bc4 {[%clk 0:04:38.7]} 6...
Bf5 {[%clk 0:04:42.8]} 7. d3 {[%clk 0:04:35.2]} 7... e6 {[%clk 0:04:41.2]} 8.
O-O {[%clk 0:04:32.5]} 8... Bd6 {[%clk 0:04:39.1]} 9. Re1 {[%clk 0:04:27.7]}
9... O-O {[%clk 0:04:37.8]} 10. Bg5 {[%clk 0:04:24.3]} 10... h6 {[%clk
0:04:35.6]} 11. Bh4 {[%clk 0:04:18.5]} 11... Bg4 {[%clk 0:04:34.4]} 12. Qe2
{[%clk 0:04:15.4]} 12... Be7 {[%clk 0:04:26.3]} 13. h3 {[%clk 0:04:12.7]} 13...
Bxf3 {[%clk 0:04:25]} 14. Qxf3 {[%clk 0:04:12.6]} 14... c6 {[%clk 0:04:24.2]}
15. a4 {[%clk 0:04:03.5]} 15... Re8 {[%clk 0:04:22.2]} 16. Bxf6 {[%clk
0:03:52.8]} 16... Bxf6 {[%clk 0:04:20.8]} 17. c3 {[%clk 0:03:50.3]} 17... a5
{[%clk 0:04:20]} 18. Re4 {[%clk 0:03:40.8]} 18... Rb8 {[%clk 0:03:58.6]} 19. d4
{[%clk 0:03:34.8]} 19... b5 {[%clk 0:03:57]} 20. axb5 {[%clk 0:03:34.7]} 20...
cxb5 {[%clk 0:03:56.2]} 21. Bd3 {[%clk 0:03:31.3]} 21... b4 {[%clk 0:03:54.9]}
22. Rg4 {[%clk 0:02:44.4]} 22... bxc3 {[%clk 0:03:48.8]} 23. bxc3 {[%clk
0:02:44.3]} 23... Rb3 {[%clk 0:03:02.5]} 24. Qe4 {[%clk 0:01:33.2]} 24... Rxc3
{[%clk 0:02:49.1]} 25. Bb5 {[%clk 0:01:21.4]} 25... Re7 {[%clk 0:02:38.9]} 26.
Bd3 {[%clk 0:01:16.1]} 26... Ra7 {[%clk 0:02:28.9]} 27. Rf4 {[%clk 0:00:34.6]}
27... g6 {[%clk 0:02:14.1]} 28. g3 {[%clk 0:00:26.6]} 28... Bg7 {[%clk
0:02:11.8]} 29. Kg2 {[%clk 0:00:24.3]} 29... a4 {[%clk 0:02:10.8]} 30. Rb1
{[%clk 0:00:20.2]} 30... a3 {[%clk 0:02:07.9]} 31. Ra1 {[%clk 0:00:09.2]} 31...
Qa8 {[%clk 0:02:04.7]} 32. Ra2 {[%clk 0:00:07.7]} 32... Qxe4+ {[%clk 0:02:02.4]}
33. Bxe4 {[%clk 0:00:07.6]} 33... g5 {[%clk 0:01:56.8]} 34. Rf3 {[%clk
0:00:05.8]} 34... Rxf3 {[%clk 0:01:55.8]} 35. Kxf3 {[%clk 0:00:05.7]} 35... Bxd4
{[%clk 0:01:54.9]} 36. Bd3 {[%clk 0:00:04.7]} 36... Bb2 {[%clk 0:01:54]} 37. h4
{[%clk 0:00:02.4]} 37... f5 {[%clk 0:01:52.5]} 38. hxg5 {[%clk 0:00:01.3]} 38...
hxg5 {[%clk 0:01:52.4]} 39. g4 {[%clk 0:00:00.4]} 39... Ra5 {[%clk 0:01:50.1]}
0-1

[Event "Live Chess"]
[Site "Chess.com"]
[Date "2023.05.21"]
[Round "-"]
[White "Biranidun"]
[Black "garyjc"]
[Result "1-0"]
[WhiteElo "2524"]
[BlackElo "1041"]
[TimeControl "300"]
[EndTime "20:45:12 PDT"]
[Termination "Biranidun won by checkmate"]

1. e4 {[%clk 0:04:59.3]} 1... c5 {[%clk 0:04:56.7]} 2. Nf3 {[%clk 0:04:58.6]}
2... d6 {[%clk 0:04:54.5]} 3. d4 {[%clk 0:04:58.2]} 3... cxd4 {[%clk 0:04:53.2]}
4. Nxd4 {[%clk 0:04:58.1]} 4... Nc6 {[%clk 0:04:51]} 5. Nc3 {[%clk 0:04:57.5]}
5... g6 {[%clk 0:04:48]} 6. Be3 {[%clk 0:04:56.5]} 6... Bg7 {[%clk 0:04:47.2]}
7. Qd2 {[%clk 0:04:55.8]} 7... Nxd4 {[%clk 0:04:37.7]} 8. Bxd4 {[%clk 0:04:55]}
8... Nf6 {[%clk 0:04:34.3]} 9. O-O-O {[%clk 0:04:53.4]} 9... O-O {[%clk
0:04:29.4]} 10. h4 {[%clk 0:04:52.6]} 10... Bd7 {[%clk 0:03:51.7]} 11. h5 {[%clk
0:04:51.5]} 11... b5 {[%clk 0:03:49.9]} 12. f3 {[%clk 0:04:33.5]} 12... b4
{[%clk 0:03:47.9]} 13. Nd5 {[%clk 0:04:32.9]} 13... Nxd5 {[%clk 0:03:30.2]} 14.
Bxg7 {[%clk 0:04:25.6]} 14... Kxg7 {[%clk 0:03:28.7]} 15. exd5 {[%clk
0:04:04.5]} 15... Rb8 {[%clk 0:03:25]} 16. hxg6 {[%clk 0:04:02.9]} 16... fxg6
{[%clk 0:03:22.9]} 17. Qh6+ {[%clk 0:04:02]} 17... Kg8 {[%clk 0:03:21]} 18.
Qxh7# {[%clk 0:04:01.2]} 1-0

[Event "Live Chess"]
[Site "Chess.com"]
[Date "2023.05.21"]
[Round "-"]
[White "chessfiction"]
[Black "Fazer180"]
[Result "1-0"]
[WhiteElo "2337"]
[BlackElo "1744"]
[TimeControl "300"]
[EndTime "20:45:19 PDT"]
[Termination "chessfiction won on time"]

1. e4 {[%clk 0:04:58.4]} 1... e6 {[%clk 0:04:58.7]} 2. d4 {[%clk 0:04:58.3]}
2... d5 {[%clk 0:04:57.2]} 3. Nc3 {[%clk 0:04:58.2]} 3... Bb4 {[%clk 0:04:55.3]}
4. e5 {[%clk 0:04:56.9]} 4... c5 {[%clk 0:04:50.3]} 5. Qg4 {[%clk 0:04:55.1]}
5... Bxc3+ {[%clk 0:04:46.6]} 6. bxc3 {[%clk 0:04:48.5]} 6... Kf8 {[%clk
0:04:34.9]} 7. Nf3 {[%clk 0:04:41.2]} 7... Ne7 {[%clk 0:04:29.2]} 8. Bg5 {[%clk
0:04:22.2]} 8... Nbc6 {[%clk 0:04:24]} 9. Bd3 {[%clk 0:04:19.8]} 9... Qa5 {[%clk
0:04:14.4]} 10. O-O {[%clk 0:04:15.3]} 10... cxd4 {[%clk 0:03:51.2]} 11. cxd4
{[%clk 0:04:12.3]} 11... Bd7 {[%clk 0:03:45.5]} 12. Rab1 {[%clk 0:04:10]} 12...
Rb8 {[%clk 0:03:39.1]} 13. Qh4 {[%clk 0:04:04.8]} 13... Ng6 {[%clk 0:03:22.9]}
14. Bxg6 {[%clk 0:04:03.5]} 14... fxg6 {[%clk 0:03:22.1]} 15. Rb3 {[%clk
0:03:59.9]} 15... Qxa2 {[%clk 0:03:15]} 16. Bh6 {[%clk 0:03:58.7]} 16... Qxc2
{[%clk 0:02:54.8]} 17. Qf6+ {[%clk 0:03:55.6]} 17... Ke8 {[%clk 0:02:48.6]} 18.
Qxg7 {[%clk 0:03:50.4]} 18... Kd8 {[%clk 0:02:27]} 19. Rfb1 {[%clk 0:03:43.7]}
19... Re8 {[%clk 0:02:21.2]} 20. h4 {[%clk 0:03:36.6]} 20... Qf5 {[%clk
0:02:09.6]} 21. Rxb7 {[%clk 0:03:28]} 21... Rxb7 {[%clk 0:01:55.3]} 22. Rxb7
{[%clk 0:03:27.9]} 22... Re7 {[%clk 0:01:53.4]} 23. Bg5 {[%clk 0:03:15.3]} 23...
Kc8 {[%clk 0:01:44.6]} 24. Bxe7 {[%clk 0:03:08.7]} 24... Kxb7 {[%clk 0:01:41.9]}
25. Bd6 {[%clk 0:03:00.5]} 25... Kc8 {[%clk 0:01:31.4]} 26. Qxh7 {[%clk
0:02:52.5]} 26... Qb1+ {[%clk 0:01:18.6]} 27. Kh2 {[%clk 0:02:50.5]} 27... Qe4
{[%clk 0:01:10.9]} 28. Qg8+ {[%clk 0:02:43.7]} 28... Kb7 {[%clk 0:01:07.7]} 29.
Qf7 {[%clk 0:02:41.7]} 29... Kc8 {[%clk 0:01:02.8]} 30. g3 {[%clk 0:02:30.2]}
30... a5 {[%clk 0:00:56.9]} 31. Ng5 {[%clk 0:02:27.6]} 31... Qf5 {[%clk
0:00:49.7]} 32. Qxf5 {[%clk 0:02:18.8]} 32... exf5 {[%clk 0:00:45.4]} 33. e6
{[%clk 0:02:18.2]} 33... Be8 {[%clk 0:00:44]} 34. Nf3 {[%clk 0:02:10.9]} 34...
a4 {[%clk 0:00:39.6]} 35. Bc5 {[%clk 0:02:08.9]} 35... Na5 {[%clk 0:00:32.5]}
36. Nd2 {[%clk 0:01:59.9]} 36... Nc4 {[%clk 0:00:31.7]} 37. Nxc4 {[%clk
0:01:57.9]} 37... dxc4 {[%clk 0:00:30.5]} 38. d5 {[%clk 0:01:55.3]} 38... Kc7
{[%clk 0:00:22.6]} 39. d6+ {[%clk 0:01:53.2]} 39... Kc6 {[%clk 0:00:21.5]} 40.
Ba3 {[%clk 0:01:52.5]} 40... c3 {[%clk 0:00:19.1]} 41. d7 {[%clk 0:01:47.5]}
41... Bxd7 {[%clk 0:00:17.6]} 42. exd7 {[%clk 0:01:47.4]} 42... Kxd7 {[%clk
0:00:17]} 43. Kg2 {[%clk 0:01:46.6]} 43... Kc6 {[%clk 0:00:16.6]} 44. f3 {[%clk
0:01:42.9]} 44... Kd5 {[%clk 0:00:15.8]} 45. g4 {[%clk 0:01:42.4]} 45... fxg4
{[%clk 0:00:14]} 46. fxg4 {[%clk 0:01:42.3]} 46... Kc4 {[%clk 0:00:12.3]} 47. h5
{[%clk 0:01:39.3]} 47... gxh5 {[%clk 0:00:11.8]} 48. gxh5 {[%clk 0:01:38.6]}
48... Kb3 {[%clk 0:00:11.4]} 49. Bc1 {[%clk 0:01:36.9]} 49... Kc2 {[%clk
0:00:08.4]} 50. Ba3 {[%clk 0:01:30.6]} 50... Kb3 {[%clk 0:00:06.9]} 51. Bc5
{[%clk 0:01:21.2]} 51... c2 {[%clk 0:00:05.7]} 52. Be3 {[%clk 0:01:20.4]} 52...
Kb2 {[%clk 0:00:05.3]} 53. h6 {[%clk 0:01:19]} 53... c1=Q {[%clk 0:00:04.2]} 54.
Bxc1+ {[%clk 0:01:17.5]} 54... Kxc1 {[%clk 0:00:04.1]} 55. h7 {[%clk 0:01:17]}
55... a3 {[%clk 0:00:03.7]} 56. h8=Q {[%clk 0:01:16.9]} 56... a2 {[%clk
0:00:02.9]} 57. Qa1+ {[%clk 0:01:15.6]} 57... Kc2 {[%clk 0:00:01.3]} 58. Qxa2+
{[%clk 0:01:15.2]} 58... Kc3 {[%clk 0:00:01.1]} 59. Qf2 {[%clk 0:01:15]} 59...
Kc4 {[%clk 0:00:01]} 60. Qf3 {[%clk 0:01:14.8]} 60... Kc5 {[%clk 0:00:00.9]} 61.
Kg3 {[%clk 0:01:14.4]} 61... Kd6 {[%clk 0:00:00.2]} 62. Qf4+ {[%clk 0:01:14.3]}
1-0

[Event "Live Chess"]
[Site "Chess.com"]
[Date "2023.05.21"]
[Round "-"]
[White "tpm07"]
[Black "matt1979"]
[Result "0-1"]
[WhiteElo "1948"]
[BlackElo "1499"]
[TimeControl "300"]
[EndTime "20:45:44 PDT"]
[Termination "matt1979 won by resignation"]

1. e4 {[%clk 0:04:56.6]} 1... d6 {[%clk 0:04:57.5]} 2. d4 {[%clk 0:04:54.8]}
2... Nf6 {[%clk 0:04:55.9]} 3. Nc3 {[%clk 0:04:52.6]} 3... e5 {[%clk 0:04:54.8]}
4. Nf3 {[%clk 0:04:51]} 4... Nbd7 {[%clk 0:04:52.8]} 5. g3 {[%clk 0:04:45.5]}
5... c6 {[%clk 0:04:45.8]} 6. Bg2 {[%clk 0:04:44.8]} 6... Be7 {[%clk 0:04:36.1]}
7. O-O {[%clk 0:04:40.3]} 7... O-O {[%clk 0:04:34.1]} 8. a4 {[%clk 0:04:39.8]}
8... a6 {[%clk 0:04:32.1]} 9. h3 {[%clk 0:04:37.2]} 9... b6 {[%clk 0:04:30.3]}
10. Be3 {[%clk 0:04:35.6]} 10... Bb7 {[%clk 0:04:28.1]} 11. Nh4 {[%clk
0:04:25.1]} 11... g6 {[%clk 0:04:20.3]} 12. f4 {[%clk 0:04:15.4]} 12... exd4
{[%clk 0:04:14.5]} 13. Bxd4 {[%clk 0:04:12.1]} 13... c5 {[%clk 0:04:12.8]} 14.
Bf2 {[%clk 0:04:02.3]} 14... Ne8 {[%clk 0:03:42.9]} 15. Nf3 {[%clk 0:03:51.7]}
15... Bf6 {[%clk 0:03:35.6]} 16. Rb1 {[%clk 0:03:43.8]} 16... Bg7 {[%clk
0:03:29]} 17. Nd5 {[%clk 0:03:32.5]} 17... Nef6 {[%clk 0:03:10.2]} 18. Ng5
{[%clk 0:03:00.8]} 18... Nxd5 {[%clk 0:02:52.4]} 19. exd5 {[%clk 0:02:58.1]}
19... h6 {[%clk 0:02:48.4]} 20. Ne4 {[%clk 0:02:51.6]} 20... Nf6 {[%clk
0:02:43.5]} 21. Nxf6+ {[%clk 0:02:48.1]} 21... Qxf6 {[%clk 0:02:40.9]} 22. c4
{[%clk 0:02:43.6]} 22... Rfe8 {[%clk 0:02:31.1]} 23. Be1 {[%clk 0:02:38.1]}
23... Qd8 {[%clk 0:02:22.2]} 24. Bc3 {[%clk 0:02:31.7]} 24... Qd7 {[%clk
0:02:10]} 25. Bxg7 {[%clk 0:02:28.3]} 25... Kxg7 {[%clk 0:02:09]} 26. Qd2 {[%clk
0:02:26.4]} 26... Re7 {[%clk 0:02:02.9]} 27. Rfe1 {[%clk 0:02:25.4]} 27... Rae8
{[%clk 0:02:00.9]} 28. Kf1 {[%clk 0:02:21.4]} 28... Bc8 {[%clk 0:01:53.5]} 29.
Rxe7 {[%clk 0:02:18]} 29... Rxe7 {[%clk 0:01:51.2]} 30. Re1 {[%clk 0:02:17.1]}
30... Qc7 {[%clk 0:01:35]} 31. Re3 {[%clk 0:01:44.9]} 31... Bf5 {[%clk 0:01:29]}
32. Qe2 {[%clk 0:01:36.3]} 32... Kf8 {[%clk 0:01:22.7]} 33. g4 {[%clk
0:01:32.9]} 33... Bc8 {[%clk 0:01:17.6]} 34. Qd3 {[%clk 0:01:17]} 34... Rxe3
{[%clk 0:01:13.8]} 35. Qxe3 {[%clk 0:01:15.3]} 35... Qe7 {[%clk 0:01:11.7]} 36.
Kf2 {[%clk 0:01:09]} 36... Qxe3+ {[%clk 0:01:09.6]} 37. Kxe3 {[%clk 0:01:08.9]}
37... Ke7 {[%clk 0:01:06.2]} 38. Ke4 {[%clk 0:01:06.9]} 38... Bd7 {[%clk
0:01:01.7]} 39. Kd3 {[%clk 0:00:57]} 39... Bxa4 {[%clk 0:00:59.3]} 40. Kc3
{[%clk 0:00:49.3]} 40... Bd7 {[%clk 0:00:57.6]} 41. Kd3 {[%clk 0:00:46.8]} 41...
Kd8 {[%clk 0:00:53.2]} 42. Ke4 {[%clk 0:00:45.5]} 42... b5 {[%clk 0:00:50]} 43.
cxb5 {[%clk 0:00:43.8]} 43... axb5 {[%clk 0:00:49]} 44. Bf3 {[%clk 0:00:42.9]}
44... c4 {[%clk 0:00:42.2]} 45. Kd4 {[%clk 0:00:39.4]} 45... Kc7 {[%clk
0:00:39]} 46. b3 {[%clk 0:00:33.4]} 46... cxb3 {[%clk 0:00:35]} 47. Kc3 {[%clk
0:00:32.5]} 47... Kb6 {[%clk 0:00:32.9]} 48. Kxb3 {[%clk 0:00:31.7]} 48... Ka5
{[%clk 0:00:31.5]} 49. h4 {[%clk 0:00:28]} 49... b4 {[%clk 0:00:28.3]} 50. Bd1
{[%clk 0:00:19.4]} 50... Ba4+ {[%clk 0:00:27.1]} 51. Kb2 {[%clk 0:00:17.7]}
51... Bxd1 {[%clk 0:00:25.9]} 0-1

[Event "Live Chess"]
[Site "Chess.com"]
[Date "2023.05.21"]
[Round "-"]
[White "Long1968"]
[Black "VIDYUTGANESH"]
[Result "0-1"]
[WhiteElo "1062"]
[BlackElo "1660"]
[TimeControl "300"]
[EndTime "20:46:06 PDT"]
[Termination "VIDYUTGANESH won on time"]

1. e4 {[%clk 0:04:57.6]} 1... e6 {[%clk 0:04:59.9]} 2. d4 {[%clk 0:04:55.2]}
2... Nc6 {[%clk 0:04:59.8]} 3. Nc3 {[%clk 0:04:52.3]} 3... Bb4 {[%clk
0:04:58.5]} 4. Ne2 {[%clk 0:04:48.1]} 4... Bxc3+ {[%clk 0:04:56.4]} 5. Nxc3
{[%clk 0:04:45.7]} 5... Nge7 {[%clk 0:04:55]} 6. Be3 {[%clk 0:04:40.1]} 6... O-O
{[%clk 0:04:45.1]} 7. Bd3 {[%clk 0:04:35.8]} 7... d5 {[%clk 0:04:43.6]} 8. e5
{[%clk 0:04:33.3]} 8... f6 {[%clk 0:04:42.2]} 9. exf6 {[%clk 0:04:23.1]} 9...
Rxf6 {[%clk 0:04:42.1]} 10. O-O {[%clk 0:04:19.8]} 10... e5 {[%clk 0:04:36.8]}
11. Bg5 {[%clk 0:04:07.9]} 11... Rf8 {[%clk 0:04:31.6]} 12. dxe5 {[%clk
0:03:56.1]} 12... Nxe5 {[%clk 0:04:26.3]} 13. Bxe7 {[%clk 0:03:24.8]} 13... Qxe7
{[%clk 0:04:22.3]} 14. Nxd5 {[%clk 0:03:21.2]} 14... Qg5 {[%clk 0:04:18.1]} 15.
Be2 {[%clk 0:02:49.3]} 15... Bh3 {[%clk 0:04:09.4]} 16. g3 {[%clk 0:02:26]}
16... Bxf1 {[%clk 0:04:01.6]} 17. Qxf1 {[%clk 0:01:59.5]} 17... Nf3+ {[%clk
0:03:52.4]} 18. Kh1 {[%clk 0:01:29.1]} 18... Qxd5 {[%clk 0:03:47.9]} 19. Bc4
{[%clk 0:01:24.4]} 19... Qxc4 {[%clk 0:03:14.5]} 20. Qxc4+ {[%clk 0:01:19.3]}
20... Kh8 {[%clk 0:03:14.2]} 21. Rd1 {[%clk 0:00:37.2]} 21... Ne5 {[%clk
0:03:07.6]} 22. Qxc7 {[%clk 0:00:28.1]} 22... Ng4 {[%clk 0:03:02.6]} 23. f4
{[%clk 0:00:19.4]} 23... Nf2+ {[%clk 0:03:00.5]} 24. Kg2 {[%clk 0:00:15.1]}
24... Nxd1 {[%clk 0:03:00.4]} 25. Qxb7 {[%clk 0:00:06.8]} 25... Ne3+ {[%clk
0:03:00.3]} 26. Kf3 {[%clk 0:00:04]} 26... Rae8 {[%clk 0:03:00.2]} 27. Qxa7
{[%clk 0:00:00.9]} 27... Nd5 {[%clk 0:03:00.1]} 0-1

[Event "Live Chess"]
[Site "Chess.com"]
[Date "2023.05.21"]
[Round "-"]
[White "Singapourfeuj"]
[Black "BostonStrangler"]
[Result "1-0"]
[WhiteElo "2154"]
[BlackElo "2068"]
[TimeControl "300"]
[EndTime "20:46:16 PDT"]
[Termination "Singapourfeuj won on time"]

1. e3 {[%clk 0:04:56.7]} 1... g6 {[%clk 0:04:58.3]} 2. c4 {[%clk 0:04:55.3]}
2... Bg7 {[%clk 0:04:57.7]} 3. Nc3 {[%clk 0:04:54.5]} 3... c5 {[%clk 0:04:56.9]}
4. g3 {[%clk 0:04:52.5]} 4... Nc6 {[%clk 0:04:55.2]} 5. Bg2 {[%clk 0:04:51.6]}
5... d6 {[%clk 0:04:54.6]} 6. Nge2 {[%clk 0:04:50.6]} 6... e5 {[%clk 0:04:52.2]}
7. O-O {[%clk 0:04:48.6]} 7... Nge7 {[%clk 0:04:50.9]} 8. Rb1 {[%clk 0:04:46.8]}
8... a5 {[%clk 0:04:48.9]} 9. b3 {[%clk 0:04:44.9]} 9... Be6 {[%clk 0:04:48]}
10. d3 {[%clk 0:04:44]} 10... d5 {[%clk 0:04:41.9]} 11. cxd5 {[%clk 0:04:42.6]}
11... Nxd5 {[%clk 0:04:41.1]} 12. Nxd5 {[%clk 0:04:40.8]} 12... Bxd5 {[%clk
0:04:40]} 13. Bh3 {[%clk 0:04:35.9]} 13... Bf3 {[%clk 0:04:32.2]} 14. Qc2 {[%clk
0:04:32.1]} 14... Rc8 {[%clk 0:04:23.1]} 15. Bb2 {[%clk 0:04:24.9]} 15... Rc7
{[%clk 0:04:21.1]} 16. Rfe1 {[%clk 0:04:18]} 16... O-O {[%clk 0:04:17.7]} 17.
Bg2 {[%clk 0:04:13.7]} 17... Bxg2 {[%clk 0:04:14.8]} 18. Kxg2 {[%clk 0:04:12.8]}
18... Nb4 {[%clk 0:04:14.5]} 19. Qc4 {[%clk 0:04:07]} 19... Qxd3 {[%clk
0:04:06.7]} 20. Red1 {[%clk 0:04:04.1]} 20... Qxc4 {[%clk 0:03:45.6]} 21. bxc4
{[%clk 0:04:03.1]} 21... e4 {[%clk 0:03:26.2]} 22. Bxg7 {[%clk 0:04:01]} 22...
Kxg7 {[%clk 0:03:24.9]} 23. a3 {[%clk 0:03:59.7]} 23... Nd3 {[%clk 0:03:23.3]}
24. Rb5 {[%clk 0:03:57.1]} 24... Ne5 {[%clk 0:03:17.5]} 25. Rxa5 {[%clk
0:03:48.7]} 25... Nxc4 {[%clk 0:03:15.1]} 26. Rb5 {[%clk 0:03:47.7]} 26... Ne5
{[%clk 0:03:11.8]} 27. Nc3 {[%clk 0:03:44.8]} 27... f5 {[%clk 0:03:08]} 28. Rdb1
{[%clk 0:03:43]} 28... Rb8 {[%clk 0:03:05.4]} 29. Nd5 {[%clk 0:03:40.3]} 29...
Rd7 {[%clk 0:03:03.2]} 30. Rxc5 {[%clk 0:03:38.9]} 30... Nd3 {[%clk 0:02:52.5]}
31. Rcb5 {[%clk 0:03:36]} 31... h5 {[%clk 0:02:43.4]} 32. Nf4 {[%clk 0:03:33.9]}
32... Ra8 {[%clk 0:02:24.3]} 33. Rxb7 {[%clk 0:03:30.4]} 33... Rxb7 {[%clk
0:02:21]} 34. Rxb7+ {[%clk 0:03:29]} 34... Kh6 {[%clk 0:02:16]} 35. Rb6 {[%clk
0:03:24]} 35... Rxa3 {[%clk 0:02:11.7]} 36. Rxg6+ {[%clk 0:03:22.5]} 36... Kh7
{[%clk 0:02:10.1]} 37. Rg5 {[%clk 0:03:17.6]} 37... Ne1+ {[%clk 0:01:28.9]} 38.
Kh3 {[%clk 0:03:15.3]} 38... Ra2 {[%clk 0:01:20.3]} 39. Rxh5+ {[%clk 0:03:14.1]}
39... Kg7 {[%clk 0:01:18.4]} 40. Rxf5 {[%clk 0:03:12.5]} 40... Kh7 {[%clk
0:01:16.9]} 41. Nd5 {[%clk 0:03:05.4]} 41... Nf3 {[%clk 0:01:09.4]} 42. Rf7+
{[%clk 0:02:50.4]} 42... Kg6 {[%clk 0:01:04.5]} 43. Rf6+ {[%clk 0:02:48.9]}
43... Kg5 {[%clk 0:00:53.8]} 44. Rxf3 {[%clk 0:02:37.3]} 44... exf3 {[%clk
0:00:50.7]} 45. Nc3 {[%clk 0:02:35.6]} 45... Rc2 {[%clk 0:00:43.9]} 46. Ne4+
{[%clk 0:02:32.7]} 46... Kf5 {[%clk 0:00:42.2]} 47. Nd6+ {[%clk 0:02:31.8]}
47... Ke5 {[%clk 0:00:38.4]} 48. Nf7+ {[%clk 0:02:22.1]} 48... Kf6 {[%clk
0:00:37.1]} 49. Nd6 {[%clk 0:02:20.4]} 49... Ke5 {[%clk 0:00:32.2]} 50. Nf7+
{[%clk 0:02:18.7]} 50... Kf6 {[%clk 0:00:20.8]} 51. Nd6 {[%clk 0:02:16.2]} 51...
Ke6 {[%clk 0:00:18]} 52. Ne4 {[%clk 0:02:13.7]} 52... Ke5 {[%clk 0:00:16]} 53.
Ng5 {[%clk 0:02:11]} 53... Rxf2 {[%clk 0:00:14.2]} 54. Kg4 {[%clk 0:02:10.1]}
54... Rf1 {[%clk 0:00:05.6]} 55. Nxf3+ {[%clk 0:02:08.6]} 55... Kf6 {[%clk
0:00:04.1]} 56. h4 {[%clk 0:02:06.9]} 56... Ra1 {[%clk 0:00:01.5]} 57. e4 {[%clk
0:02:05.4]} 1-0

[Event "Live Chess"]
[Site "Chess.com"]
[Date "2023.05.21"]
[Round "-"]
[White "Doge_Dandolo"]
[Black "KeithArkell"]
[Result "0-1"]
[WhiteElo "1917"]
[BlackElo "2571"]
[TimeControl "300"]
[EndTime "20:46:20 PDT"]
[Termination "KeithArkell won by resignation"]

1. Nf3 {[%clk 0:04:57.5]} 1... Nf6 {[%clk 0:04:44]} 2. c4 {[%clk 0:04:55.8]}
2... c5 {[%clk 0:04:41.2]} 3. g3 {[%clk 0:04:54.1]} 3... Nc6 {[%clk 0:04:40.4]}
4. d4 {[%clk 0:04:52.7]} 4... cxd4 {[%clk 0:04:39.3]} 5. Nxd4 {[%clk 0:04:51.7]}
5... g6 {[%clk 0:04:37.3]} 6. Bg2 {[%clk 0:04:50.5]} 6... Bg7 {[%clk 0:04:36.8]}
7. Nc3 {[%clk 0:04:49.8]} 7... O-O {[%clk 0:04:35.7]} 8. O-O {[%clk 0:04:48.7]}
8... Nxd4 {[%clk 0:04:35]} 9. Qxd4 {[%clk 0:04:46.9]} 9... d6 {[%clk 0:04:34.2]}
10. Qd3 {[%clk 0:04:45.6]} 10... Nd7 {[%clk 0:04:30.2]} 11. Bd2 {[%clk
0:04:43.4]} 11... Ne5 {[%clk 0:04:28]} 12. Qe4 {[%clk 0:04:29.4]} 12... Bf5
{[%clk 0:04:19]} 13. Qd4 {[%clk 0:04:27.2]} 13... Nf3+ {[%clk 0:04:17.1]} 0-1

[Event "Live Chess"]
[Site "Chess.com"]
[Date "2023.05.21"]
[Round "-"]
[White "yarek"]
[Black "Tushinskiy"]
[Result "0-1"]
[WhiteElo "1881"]
[BlackElo "2215"]
[TimeControl "300"]
[EndTime "20:47:13 PDT"]
[Termination "Tushinskiy won on time"]

1. e4 {[%clk 0:04:56.9]} 1... e5 {[%clk 0:04:59.1]} 2. Nf3 {[%clk 0:04:54.1]}
2... d6 {[%clk 0:04:59]} 3. d4 {[%clk 0:04:49.2]} 3... Bg4 {[%clk 0:04:58.2]} 4.
dxe5 {[%clk 0:04:44.3]} 4... Nd7 {[%clk 0:04:57.1]} 5. exd6 {[%clk 0:04:32.4]}
5... Bxd6 {[%clk 0:04:57]} 6. Be2 {[%clk 0:04:25.2]} 6... Qe7 {[%clk 0:04:55.5]}
7. Nc3 {[%clk 0:04:21.4]} 7... Ngf6 {[%clk 0:04:52.1]} 8. Bg5 {[%clk 0:04:12.1]}
8... O-O-O {[%clk 0:04:50.9]} 9. h3 {[%clk 0:03:45.3]} 9... Bh5 {[%clk
0:04:47.3]} 10. Qd4 {[%clk 0:03:04.2]} 10... Bc5 {[%clk 0:04:40.1]} 11. Qa4
{[%clk 0:02:56]} 11... Kb8 {[%clk 0:04:35.6]} 12. O-O {[%clk 0:02:39.7]} 12...
h6 {[%clk 0:04:25.8]} 13. Bh4 {[%clk 0:02:33.5]} 13... Ne5 {[%clk 0:04:23.3]}
14. Nd5 {[%clk 0:02:22.6]} 14... Rxd5 {[%clk 0:04:15.6]} 15. exd5 {[%clk
0:02:20.2]} 15... Nxf3+ {[%clk 0:04:14.5]} 16. Bxf3 {[%clk 0:02:18.8]} 16...
Bxf3 {[%clk 0:04:13.6]} 17. gxf3 {[%clk 0:02:17.7]} 17... Qe5 {[%clk 0:04:12.8]}
18. c4 {[%clk 0:01:44.7]} 18... g5 {[%clk 0:04:08.5]} 19. Rae1 {[%clk
0:01:28.5]} 19... Qf4 {[%clk 0:04:06.1]} 20. b4 {[%clk 0:01:08.9]} 20... Bd4
{[%clk 0:04:04.5]} 21. d6 {[%clk 0:00:46.5]} 21... gxh4 {[%clk 0:03:43.3]} 22.
dxc7+ {[%clk 0:00:42.3]} 22... Qxc7 {[%clk 0:03:40.2]} 23. Kg2 {[%clk
0:00:20.1]} 23... Rg8+ {[%clk 0:03:34.8]} 24. Kh1 {[%clk 0:00:17.3]} 24... Qc8
{[%clk 0:03:21.6]} 25. Kh2 {[%clk 0:00:06.1]} 25... Qf5 {[%clk 0:03:15.6]} 0-1

[Event "Live Chess"]
[Site "Chess.com"]
[Date "2023.05.21"]
[Round "-"]
[White "Biranidun"]
[Black "ramses-IIG"]
[Result "1-0"]
[WhiteElo "2524"]
[BlackElo "870"]
[TimeControl "300"]
[EndTime "20:47:22 PDT"]
[Termination "Biranidun won by resignation"]

1. e4 {[%clk 0:04:59.3]} 1... d5 {[%clk 0:04:59.7]} 2. exd5 {[%clk 0:04:58.4]}
2... Qxd5 {[%clk 0:04:59.6]} 3. Nc3 {[%clk 0:04:57.5]} 3... Qe6+ {[%clk
0:04:59.5]} 4. Be2 {[%clk 0:04:56.6]} 4... Qg6 {[%clk 0:04:59.4]} 5. Nf3 {[%clk
0:04:55.8]} 5... Qxg2 {[%clk 0:04:57]} 6. Rg1 {[%clk 0:04:55.1]} 6... Qh3 {[%clk
0:04:56.9]} 7. d4 {[%clk 0:04:41.3]} 7... c6 {[%clk 0:04:55.7]} 8. d5 {[%clk
0:04:40.4]} 8... Qd7 {[%clk 0:04:42]} 9. Ne5 {[%clk 0:04:37.7]} 9... Qd6 {[%clk
0:04:23.4]} 10. Bf4 {[%clk 0:04:36.6]} 10... cxd5 {[%clk 0:04:12.2]} 11. Nxd5
{[%clk 0:04:18.7]} 11... Be6 {[%clk 0:04:00.8]} 12. Bb5+ {[%clk 0:04:16.6]}
12... Nd7 {[%clk 0:03:49.6]} 13. Nxd7 {[%clk 0:04:12.6]} 13... Bxd7 {[%clk
0:03:49.5]} 14. Bxd6 {[%clk 0:04:11.6]} 1-0